Cogmind - Beta 13 @@@ ROGUE MODE // 2024.04.19 @ 23:52:21 Player: Chemicalhorse Result: Self-destructed Performance ------------- Evolutions (1) 500 Regions Visited (2) 400 Robots Destroyed (2) 10 Value Destroyed (68) 68 Prototype IDs (0) 0 Alien Tech Used (0) 0 Bonus (0) 0 TOTAL SCORE: 978 Bonus ------- None Cogmind --------- Core Integrity 400/400 Matter 300/300 Energy 125/125 System Corruption 0% Temperature Cool (0) Movement Rolling (80) Location -9/Materials Parts ------- > --- POWER (1) -------- Light Ion Engine > --- PROPULSION (3) --- Wheel Wheel > --- UTILITY (3) ------ Small Storage Unit Small Storage Unit > --- WEAPON (2) ------- Medium Laser Light Assault Rifle > --- INVENTORY (8) ---- Aluminum Leg Aluminum Leg Large Storage Unit Assault Rifle Peak State ------------ > --- POWER ------------ Light Ion Engine > --- PROPULSION ------- Wheel Wheel > --- UTILITY ---------- Small Storage Unit Small Storage Unit > --- WEAPON ----------- Medium Laser Light Assault Rifle > --- INVENTORY -------- Aluminum Leg Aluminum Leg Assault Rifle [Rating: 7] Favorites ----------- Power Light Ion Engine Engine Light Ion Engine Propulsion Wheel Wheel Wheel Utility Small Storage Unit Storage Small Storage Unit Weapon Light Assault Rifle Energy Gun Medium Laser Ballistic Gun Light Assault Rifle Build | -11 -10 -9 ------- Run | Yrd Mat Mat Slots Evolved 2 | . . 2 Power . | . . . Propulsion 1 | . . 1 Utility 1 | . . 1 Weapon . | . . . Parts Attached 7 | 6 1 . Power 1 | 1 . . Engine 1 | 1 . . Core . | . . . Reactor . | . . . Propulsion 2 | 2 . . Treads . | . . . Leg . | . . . Wheel 2 | 2 . . Hover . | . . . Flight . | . . . Utility 2 | 1 1 . Device . | . . . Storage 2 | 1 1 . Processor . | . . . Hackware . | . . . Protection . | . . . Artifact . | . . . Weapon 2 | 2 . . Energy Gun 1 | 1 . . Energy Cannon . | . . . Ballistic Gun 1 | 1 . . Ballistic Cannon . | . . . Launcher . | . . . Special Weapon . | . . . Impact Weapon . | . . . Slashing Weapon . | . . . Piercing Weapon . | . . . Special Melee Weapon . | . . . Unidentified Prototypes . | . . . Parts Lost . | . . . Power . | . . . Propulsion . | . . . Utility . | . . . Weapon . | . . . Highest Loss Streak . | . . . To Critical Strikes . | . . . Average Slot Usage (%) 97 | . 99 77 Engine 13 | . 14 11 Wheel 27 | . 28 22 Storage 26 | . 27 22 Energy Gun 13 | . 14 11 Ballistic Gun 13 | . 14 11 Naked Turns . | . . . Heaviest Build 16 | 11 16 16 Greatest Support 20 | 20 20 20 Greatest Overweight (x) . | . . . Average Overweight (x) . | . . . Largest Inventory Capacity 8 | 8 8 8 Average Capacity 7 | 7 8 8 Most Carried 4 | 3 4 4 Average Carried 3 | 1 3 4 Final Capacity 8 | 8 8 8 Final Carried 4 | 3 4 4 Class Distribution -------------------- 100% | Mutant Dominant Class ---------------- Mutant | -10/Materials Mutant | -9/Materials Resources | -11 -10 -9 ----------- Run | Yrd Mat Mat Matter Collected 275 | 244 31 . Remotely . | . . . Salvage Created 74 | . 74 . Parts 6 | . 6 . Haulers Intercepted . | . . . Recyclers Shooed . | . . . Parts Field Recycled . | . . . Retrieved Matter . | . . . Parts Self-Destructed . | . . . Prevented . | . . . Kills | -11 -10 -9 ------- Run | Yrd Mat Mat Combat Hostiles Destroyed 2 | . 2 . Guns 2 | . 2 . Classes Destroyed 1 | . 1 . Grunt 2 | . 2 . Best Kill Streak 2 | . 2 . Combat Bots Only 2 | . 2 . Max Kills in Single Turn 2 | . 2 . Gunslinging 1 | . 1 . Exploded . | . . . Melee . | . . . Uniques/NPCs Destroyed . | . . . Combat | -11 -10 -9 -------- Run | Yrd Mat Mat Hostile Shots Fired 23 | . 23 . Missed 7 | . 7 . Damage Taken 176 | . 176 . Core 68 | . 68 . Absorbed by Shields . | . . . Core Remaining (%) 86 | 100 72 . Volleys Fired 5 | . 5 . Largest 2 | . 2 . Hottest 70 | . 70 . Shots Fired 10 | . 10 . Gun 10 | . 10 . Cannon . | . . . Launcher . | . . . Special . | . . . Kinetic 5 | . 5 . Thermal 5 | . 5 . Explosive . | . . . Electromagnetic . | . . . Robot Hit Streak 4 | . 4 . Robot Miss Streak 6 | . 6 . Penetration Max . | . . . Secondary Targets 1 | . 1 . Max Gunslinging Chain 1 | . 1 . Shots Hit Robots 4 | . 4 . Core Hits 4 | . 4 . Critical Kills . | . . . Critical Parts Destroyed . | . . . Critical Strikes 1 | . 1 . Burn 1 | . 1 . Melee Attacks . | . . . Impact . | . . . Slashing . | . . . Piercing . | . . . Sneak Attacks . | . . . Combat Hostiles . | . . . Follow-up Attacks . | . . . Damage Inflicted 56 | . 56 . Guns 56 | . 56 . Cannons . | . . . Explosions . | . . . Melee . | . . . Ramming . | . . . Kinetic 20 | . 20 . Thermal 36 | . 36 . Explosive . | . . . Electromagnetic . | . . . Impact . | . . . Slashing . | . . . Piercing . | . . . Highest Corruption . | . . . Average Corruption . | . . . Corruption Purged . | . . . Corruption Blocked . | . . . Overload Shots . | . . . Overflow Damage . | . . . Projectiles . | . . . Explosions . | . . . Melee . | . . . Knockbacks . | . . . Impact . | . . . Kinetic . | . . . Secondary . | . . . Self-Inflicted Damage . | . . . Shots . | . . . Rammed . | . . . Targets Rammed . | . . . Kicked . | . . . Crushed . | . . . Highest Temperature 116 | . 116 . Average Temperature 58 | . 58 . Received Heat Transfer 96 | . 96 . Siege Activations . | . . . Robots Corrupted . | . . . Combat Hostiles . | . . . Parts Fried . | . . . Impact Corruptions . | . . . Robots Melted . | . . . Combat Hostiles . | . . . Parts Melted . | . . . Heat Transferred 185 | . 185 . Parts Sabotaged . | . . . Parts Stolen . | . . . Parts Stripped . | . . . Power Chain Reactions . | . . . Alert | -11 -10 -9 ------- Run | Yrd Mat Mat Peak Influence 70 | . 70 29 Initial 29 | . . 29 Average 10 | . 10 29 Maximum Alert Level . | . . . Low Security (%) 100 | 100 100 100 Level 1 . | . . . Level 2 . | . . . Level 3 . | . . . Level 4 . | . . . Level 5 . | . . . High Security . | . . . Max Security . | . . . Squads Dispatched . | . . . Investigation . | . . . Extermination . | . . . Reinforcement . | . . . Assault . | . . . Garrison . | . . . Intercept . | . . . Searches Triggered . | . . . Construction Impeded . | . . . Haulers Reinforced . | . . . Active Scanning Responses . | . . . Cargo Convoy Interrupts . | . . . Stealth | -11 -10 -9 --------- Run | Yrd Mat Mat Distress Signals 2 | . 1 1 Communications Jammed . | . . . Distress Signals . | . . . Times Spotted 9 | . 8 1 Peak Tracking Total 4 | . 4 2 Tactical Retreats 1 | . 1 . Traps | -11 -10 -9 ------- Run | Yrd Mat Mat Traps Triggered . | . . . Indirectly . | . . . Trap Hack Attempts . | . . . Triggered . | . . . Disarmed 6 | . 6 . Reprogrammed . | . . . Reused . | . . . Traps Extracted . | . . . Installed . | . . . Triggered . | . . . Machines | -11 -10 -9 ---------- Run | Yrd Mat Mat Machines Disabled . | . . . Max in Single Turn . | . . . Machines Repaired . | . . . Machines Dismantled . | . . . Machines Sabotaged . | . . . Overloaded Fab Kills . | . . . Hacking | -11 -10 -9 --------- Run | Yrd Mat Mat Machines Accessed 2 | . 2 . Terminals 1 | . 1 . Fabricators . | . . . Repair Stations . | . . . Recycling Units 1 | . 1 . Scanalyzers . | . . . Garrison Access . | . . . Total Hacks 5 | . 5 . Successful 3 | . 3 . Failed 2 | . 2 . Catastrophic . | . . . Database Lockouts . | . . . Manual . | . . . Terminals 3 | . 3 . Fabricators . | . . . Repair Stations . | . . . Recycling Units 2 | . 2 . Scanalyzers . | . . . Garrison Access . | . . . Terminal Hacks 3 | . 3 . Disarm Traps 1 | . 1 . Dispatch Records 1 | . 1 . Zone Layout 1 | . 1 . Fabricator Hacks . | . . . Repair Station Hacks . | . . . Recycling Unit Hacks . | . . . Scanalyzer . | . . . Garrison Access Hacks . | . . . Unauthorized Hacks . | . . . Terminals . | . . . Fabricators . | . . . Repair Stations . | . . . Recycling Units . | . . . Scanalyzers . | . . . Garrison Access . | . . . Data Cores Recovered . | . . . Used . | . . . Hacking Detections 1 | . 1 . Full Trace Events . | . . . Feedback Events . | . . . Feedback Blocked . | . . . Robot Schematics Acquired . | . . . Robots Built . | . . . Authchips . | . . . Time . | . . . Total Robot Build Rating . | . . . Part Schematics Acquired . | . . . Parts Built . | . . . Authchips . | . . . Time . | . . . Total Part Build Rating . | . . . Parts Repaired . | . . . Time . | . . . Parts Recycled . | . . . Recycled Matter . | . . . Retrieved Matter . | . . . Retrieved Components . | . . . Parts Scanalyzed . | . . . Part Schematics Acquired . | . . . Parts Damaged . | . . . Bothacking | -11 -10 -9 ------------ Run | Yrd Mat Mat Used RIF Installer . | . . . Robots Hacked . | . . . Non-combat . | . . . Combat . | . . . Robot Hacks Applied . | . . . Relay Couplers Released . | . . . Fabnet Peak Effective % . | . . . Robots Rewired . | . . . Allies Hacked . | . . . Hacks Repelled . | . . . Allies | -11 -10 -9 -------- Run | Yrd Mat Mat Total Allies . | . . . Largest Group . | . . . Highest-Rated Group . | . . . Highest-Rated Ally . | . . . Total Orders . | . . . Ally Attacks . | . . . Total Damage . | . . . Kills . | . . . Allies Corrupted . | . . . Allies Melted . | . . . Intel | -11 -10 -9 ------- Run | Yrd Mat Mat Robot Analysis Total . | . . . Derelict Logs Recovered . | . . . Drone Launches . | . . . Drone Recoveries . | . . . Exploration | -11 -10 -9 ------------- Run | Yrd Mat Mat Turns Passed 323 | 48 244 31 Spaces Moved 295 | 46 211 38 Core 3 | 3 . . Treads . | . . . Legs . | . . . Wheels 292 | 43 211 38 Hover . | . . . Flight . | . . . Fastest Speed 50 | 50 80 80 Average Speed 79 | 78 80 80 Slowest Speed 80 | 80 80 80 Overloaded Moves . | . . . Propulsion Burnouts . | . . . Robots Hopped . | . . . Cave-ins Triggered . | . . . Exploration Rate (%) 10 | 3 23 5 Regions Visited 2 Branch Regions . Pre-discovered Areas . | . . . Known Exits Taken . | . . . Unknown Exits Taken 2 | 1 1 . Scrap Searched . | . . . Spaces Dug . | . . . Terrain Destroyed . | . . . Melee . | . . . Projectile . | . . . AOE . | . . . Terrain Rammed . | . . . Walls Destroyed . | . . . Machines Disabled . | . . . Actions | -11 -10 -9 --------- Run | Yrd Mat Mat Total 368 | 54 276 38 Wait 59 | . 59 . Move 293 | 45 210 38 Hop . | . . . Pick Up 4 | 3 1 . Fast Attach 7 | 6 1 . Attach . | . . . Detach . | . . . Swap . | . . . Drop . | . . . Fire 5 | . 5 . Melee . | . . . Ram . | . . . Kick . | . . . Crush . | . . . Escape Stasis . | . . . Rewire . | . . . Trap . | . . . Miscellaneous . | . . . Route ------- -11/Scrapyard -10/Materials -9/Materials (discovered 2 exits: [*Sto x2]) History --------- Turn | Location | Event 15 | -11/Scrapyard | Discovered new exit (range 16) 49 | -11/Scrapyard | Entered Materials 202 | -10/Materials | Discovered new exit (range 17) 293 | -10/Materials | Entered another Materials area 293 | -9/Materials | Evolved 2 slots: Propulsion x1, Utility x1 304 | -9/Materials | Build established: Mutant 311 | -9/Materials | Discovered new exit (range 10) 311 | -9/Materials | Discovered new exit (range 8) 324 | -9/Materials | Self-destructed Last Messages --------------- Connecting with Terminal... >>Enumerate(Squads) Retrieving dispatch records... Found 8 active squads: 3x Surveillance 3x Patrol 2x Transport K-01 Serf cleans the Fusion Modulator. Acquired Lrg. Storage Unit. G-34 Mercenary suffers critical hit (Burn). G-34 Mercenary destroyed. Switching to secondary target: G-34 Mercenary. G-34 Mercenary destroyed. Acquired 31 matter. PARAMETERS=PROPULSION+1,UTILITY+1 LOCATION=UNKNOWN GOAL=ESCAPE EXIT=FOUND Connecting with Scanalyzer... Current location identified: Materials Map ----- +----------------------------------------------------+ | ?????????????????????????????????????????????????? | | ??????????????????#####??????????????????????????? | | ??????????????????# ??????????????????????????? | | ??????????????????? ??????????????????????????? | | ??????????????????? < ??????????????????????????? | | ??????????????????? ??????????????????????????? | | ???????????????????# #??????????????????????????? | | ???????????????????# #??????????????????????????? | | ???????????????????# #??????????????????????????? | | ???????????????????# #??????????????????????????? | | ??????????????????## ##?#####???????????????????? | | ??????????????????# ### #???????????????????? | | ??????????????????# #???????????????????? | | ??????????????????# #???????????????????? | | ??????????????????# ### #???????????????????? | | ??????????????????## ##?# #???????????????????? | | ???????????????????# #??# #???????????????????? | | ???????????????????# #?## ##????????+###??????? | | ???????????????????# #?# ###+### ###????? | | ??????????????????## ### ????? | | ??????????????????# ## T ?????? | | ??????????????????# ## ???? | | ??????????????????# < ## ###+### #??????? | | ??????????????????# ########????????####??????? | | ??????????????????## ########???????????????????? | | ???????????????????# # @ #???????????????????? | | ???????????????????+ + "S #???????????????????? | | ???????????????????# # """ #???????????????????? | | ???????????????????# # "" #???????????????????? | | ???????????????????# # #???????????????????? | | ???????????????????# # [ #???????????????????? | | ???????????????????# ######+#???????????????????? | | ???????????????????# #??????????????????????????? | | ???????????????????# #??????????????????????????? | | ??????????????????? ??????????????????????????? | | ??????????????????? ??????????????????????????? | | ??????????????????? ??????????????????????????? | | ??????????????????? ??????????????????????????? | | ??????????????????? ??????????????????????????? | | ??????????????????? ??????????????????????????? | | ???????????????????# ???????????????????????????? | | ?????????????????????????????????????????????????? | | ?????????????????????????????????????????????????? | | ?????????????????????????????????????????????????? | | ?????????????????????????????????????????????????? | | ?????????????????????????????????????????????????? | | ?????????????????????????????????????????????????? | | ?????????????????????????????????????????????????? | | ?????????????????????????????????????????????????? | | ?????????????????????????????????????????????????? | +----------------------------------------------------+ Best States ------------- Heat Dissipation 28 Energy Generation 10 Energy Capacity 125 Matter Stores 300 Matter Capacity 300 Sight Range 16 Terrain Scan Density 10 Evasion (%) 44 Item Schematics ----------------- None Robot Schematics ------------------ None Fabricated ------------ Nothing Alien Tech Used ----------------- None Achievements -------------- None Challenges ------------ None Game ------ Seed ShadingBiometalArray Manual? 0 Play Time 00:08:05 Cumulative 19.0 hours Start 2024.04.19 @ 23:43:33 End 2024.04.19 @ 23:52:21 Sessions 1 Manual Loads 0 Difficulty Rogue Special Mode None Game No. 41 Rogue 40 Adventurer 1 Explorer 0 Win Type - Total 0 Types 0/0/0/0/0/0/0/0/0 Lore% 20 Gallery% 18 Achievement% 16 Wizard Run 0 Options --------- Layout 1 ASCII 0 Keyboard 1 Movement Numpad Keybinds 0 Fullscreen 1 Font 32/SmallcapsGlow Map View 50x40 Zoom Use 0% Tactical HUD 0 Map Filters NONE Filters NONE Steam 1 RUN: 19bccdec-721d-4943-a9c8-a160a8642c2b